bitfinex/quotes_BTCUSD_20240723
["timestamp","ask_amount","ask_price","bid_price","bid_amount"]
[1721773279515,1.28545671,65997.0,65996.0,0.01]
[1721773279724,0.4546,65992.0,65991.0,0.06494965]
[1721773279933,0.60161991,65992.0,65991.0,0.06494965]
[1721773280564,1.00283158,65992.0,65991.0,0.06494965]
[1721773280974,0.60161991,65992.0,65991.0,0.06494965]
[1721773281398,0.151533,65992.0,65991.0,0.06494965]
[1721773281606,0.151531,65993.0,65992.0,0.00114965]
[1721773282150,0.1575076,65993.0,65992.0,0.00114965]
[1721773282550,0.0059766,65993.0,65992.0,0.00114965]
[1721773282758,0.14785991,65997.0,65993.0,0.216431]
[1721773282759,0.152362,65997.0,65993.0,0.216431]
[1721773283012,0.152362,65997.0,65996.0,0.00114965]
[1721773283183,0.0068166,65997.0,65996.0,0.08034965]
[1721773283535,0.00084,65997.0,65996.0,0.29677365]
[1721773284469,0.00184,65997.0,65996.0,0.30377365]
[1721773284917,0.00184,65997.0,65996.0,0.15224965]
[1721773285136,1.20951391,65997.0,65996.0,0.007]
[1721773285359,1.36442398,65997.0,65996.0,0.007]
[1721773285601,1.76746798,65997.0,65996.0,0.007]
[1721773285812,2.05963063,65997.0,65996.0,0.007]
[1721773286020,0.454702,65977.0,65976.0,0.06744965]
[1721773286230,0.90485691,65977.0,65976.0,0.06744965]
[1721773286434,0.91090334,65977.0,65976.0,0.06744965]
[1721773287502,1.21403834,65977.0,65976.0,0.06744965]
[1721773287704,1.21403834,65977.0,65976.0,0.06944965]
[1721773288363,0.91090334,65977.0,65976.0,0.06944965]
[1721773288563,0.91590334,65977.0,65976.0,0.06944965]
[1721773288971,0.91590334,65977.0,65976.0,0.06744965]
[1721773288972,0.91090334,65977.0,65976.0,0.06744965]
[1721773289412,0.91890334,65977.0,65976.0,0.06844965]
[1721773289894,0.91190334,65977.0,65976.0,0.06744965]
[1721773290097,0.91590334,65977.0,65976.0,0.06744965]
[1721773290304,0.91090334,65977.0,65976.0,0.06744965]
[1721773290521,0.91090334,65977.0,65976.0,0.06944965]
[1721773291999,0.91590334,65977.0,65976.0,0.14293907]
[1721773292205,0.91090334,65977.0,65976.0,0.14293907]
[1721773292425,0.91590334,65977.0,65976.0,0.14293907]
[1721773292639,0.15761343,65977.0,65976.0,0.14093907]
[1721773292856,0.00604643,65977.0,65976.0,0.59864907]
[1721773293057,0.00604643,65977.0,65976.0,0.29550907]
[1721773293339,0.303102,65985.0,65984.0,0.00114965]
[1721773293543,0.15748467,65977.0,65976.0,0.06744965]
[1721773293749,0.155567,65977.0,65976.0,0.07244965]
[1721773293956,0.16148467,65977.0,65976.0,0.07244965]
[1721773294169,0.00991767,65977.0,65976.0,0.07244965]
[1721773294805,0.00591767,65977.0,65976.0,0.07244965]
[1721773295008,0.151564,65979.0,65976.0,0.07244965]
[1721773295233,0.151564,65979.0,65978.0,0.00114965]
[1721773295443,0.303081,65989.0,65986.0,0.00114965]
[1721773295652,0.454637,65987.0,65986.0,0.08364965]
[1721773295892,0.454637,65987.0,65986.0,0.0825]
[1721773295893,0.757729,65987.0,65986.0,0.0825]
[1721773296112,0.757729,65987.0,65986.0,0.08364965]
[1721773296113,0.454637,65987.0,65986.0,0.08364965]
[1721773296330,0.151545,65987.0,65986.0,0.14404965]
[1721773297162,0.303061,65994.0,65991.0,0.00114965]
[1721773297369,0.151538,65990.0,65989.0,0.00114965]
[1721773297573,0.75769,65990.0,65989.0,0.00114965]
[1721773298605,0.76869,65990.0,65989.0,0.00214965]
[1721773299022,0.465614,65990.0,65989.0,0.00214965]
[1721773299230,0.471614,65990.0,65989.0,0.00314965]
[1721773299435,0.017,65990.0,65989.0,0.00314965]
[1721773299638,0.017,65990.0,65989.0,0.15468965]
[1721773299840,0.017,65990.0,65989.0,0.00314965]
[1721773301283,0.017,65990.0,65989.0,0.22817907]
[1721773302288,0.017,65990.0,65989.0,0.00314965]
[1721773302701,0.017,65990.0,65989.0,0.002]
[1721773302911,0.017,65990.0,65989.0,0.00314965]
[1721773303062,0.471614,65990.0,65989.0,0.00314965]
[1721773303270,0.4776341,65990.0,65989.0,0.00314965]
[1721773307996,0.70272492,65990.0,65989.0,0.002]
[1721773308200,1.30887692,65990.0,65989.0,0.002]
[1721773308936,0.75777,65983.0,65982.0,0.00114965]
[1721773309142,0.75777,65983.0,65979.0,0.00114965]
[1721773309143,0.454683,65980.0,65979.0,0.00114965]
[1721773309350,0.757805,65980.0,65979.0,0.00114965]
[1721773309775,0.76382275,65980.0,65979.0,0.00114965]
[1721773310380,0.76582275,65980.0,65979.0,0.00114965]
[1721773311414,0.28421093,65980.0,65977.0,0.00114965]
[1721773311635,0.28421093,65980.0,65975.0,0.00114965]
[1721773311636,0.45471,65976.0,65975.0,0.00114965]
[1721773311849,0.75785,65976.0,65975.0,0.00114965]
[1721773312045,0.76386775,65976.0,65975.0,0.00114965]
[1721773312490,0.46072775,65976.0,65975.0,0.00114965]
[1721773312839,0.151574,65974.0,65973.0,0.07364965]
[1721773313397,0.15759175,65974.0,65973.0,0.07364965]
[1721773314025,0.15859175,65974.0,65973.0,0.07964965]
[1721773315140,0.15959175,65974.0,65973.0,0.09164965]
[1721773315449,0.00801775,65974.0,65973.0,0.09164965]
[1721773316030,0.15959175,65974.0,65973.0,0.09164965]
[1721773316186,0.00801775,65974.0,65973.0,0.09164965]
[1721773317214,0.15959175,65974.0,65973.0,0.09164965]
[1721773317489,0.00801775,65974.0,65973.0,0.09164965]
[1721773321028,0.00801775,65974.0,65973.0,0.30952665]
[1721773322665,0.00801775,65974.0,65973.0,0.61268065]
[1721773322966,0.00801775,65974.0,65973.0,0.61360465]
[1721773325672,0.00801775,65974.0,65973.0,0.31045065]
[1721773327164,0.00801775,65974.0,65973.0,0.15887365]
[1721773327343,0.00801775,65974.0,65973.0,0.31045065]
[1721773327546,0.00801775,65974.0,65973.0,0.15887365]
[1721773328007,0.00801775,65974.0,65973.0,0.31045065]
[1721773329280,0.00801775,65974.0,65973.0,0.15887365]
[1721773329489,0.00801775,65974.0,65973.0,0.31045065]
[1721773329644,0.00801775,65974.0,65973.0,0.15887365]
[1721773329831,0.00801775,65974.0,65973.0,0.31045065]
[1721773330434,0.00801775,65974.0,65973.0,0.61360465]
[1721773330642,0.002,65974.0,65973.0,0.73951792]
[1721773331581,0.002,65974.0,65973.0,0.43636392]
[1721773331777,0.002,65974.0,65973.0,0.31045065]
[1721773331984,0.002,65974.0,65973.0,0.73951735]
[1721773334113,0.002,65974.0,65973.0,0.43636335]
[1721773335183,0.002,65974.0,65973.0,0.43636345]
[1721773337124,0.002,65974.0,65973.0,0.73951745]
[1721773337916,0.002,65974.0,65973.0,1.49284536]
[1721773338128,0.002,65974.0,65973.0,1.53828307]
[1721773338300,0.002,65974.0,65973.0,1.49284536]
[1721773338502,0.002,65974.0,65973.0,2.189116]
[1721773338704,0.002,65974.0,65973.0,1.6641091]
[1721773338913,0.002,65974.0,65973.0,1.49282499]
[1721773339315,0.002,65974.0,65973.0,1.89141753]
[1721773339519,0.002,65974.0,65973.0,1.94597899]
[1721773339726,0.002,65974.0,65973.0,2.63797936]
[1721773340153,0.002,65974.0,65973.0,3.05683028]
[1721773340497,0.002,65974.0,65973.0,3.31994424]
[1721773340696,0.002,65974.0,65973.0,3.41096424]
[1721773340848,0.002,65974.0,65973.0,3.88153473]
[1721773341113,0.002,65974.0,65973.0,3.92520219]
[1721773341227,0.002,65974.0,65973.0,4.06140153]
[1721773341428,0.001,65974.0,65973.0,4.01173407]
[1721773341658,0.001,65974.0,65973.0,4.01160362]
[1721773342241,0.001,65974.0,65973.0,3.41885395]
[1721773342440,0.00084,65997.0,65996.0,0.151524]
[1721773342708,0.00688027,65997.0,65996.0,0.151524]
[1721773342945,0.00084,65997.0,65996.0,0.151524]
[1721773343346,0.00084,65997.0,65996.0,0.76065005]
[1721773343523,0.00084,65997.0,65996.0,0.75762]
[1721773343724,0.00084,65997.0,65996.0,0.454572]
[1721773344850,0.00884,65997.0,65996.0,0.455572]
[1721773345417,0.00884,65997.0,65996.0,0.75862]
[1721773345595,0.00884,65997.0,65996.0,0.455572]
[1721773345999,0.00884,65997.0,65996.0,0.75862]
[1721773346206,0.00884,65997.0,65996.0,0.455572]
[1721773347036,0.00884,65997.0,65996.0,0.75862]
[1721773347236,0.00884,65997.0,65996.0,1.44178353]
[1721773347440,0.00884,65997.0,65996.0,1.50748353]
[1721773347714,0.00884,65997.0,65996.0,1.45331122]
[1721773347951,0.00884,65997.0,65996.0,1.60033113]
[1721773348115,0.00884,65997.0,65996.0,1.59747733]
[1721773348316,0.00884,65997.0,65996.0,1.72332762]
[1721773348514,0.00884,65997.0,65996.0,1.76699508]
[1721773349072,0.00084,65997.0,65996.0,1.08343775]
[1721773349418,0.00184,65997.0,65996.0,1.05377029]
[1721773349664,0.00184,65997.0,65996.0,1.40681829]
[1721773350306,0.00184,65997.0,65996.0,1.280968]
[1721773350719,0.00184,65997.0,65996.0,1.230968]
[1721773351131,0.00184,65997.0,65996.0,0.92792]
[1721773351558,0.00184,65997.0,65996.0,1.230968]
[1721773352447,0.00184,65997.0,65996.0,0.92792]
[1721773352890,0.00184,65997.0,65996.0,1.230968]
[1721773353094,0.00184,65997.0,65996.0,0.92792]
[1721773353634,0.00184,65997.0,65996.0,1.230968]
[1721773354020,0.00184,65997.0,65996.0,0.92792]
[1721773354935,0.00184,65997.0,65996.0,0.78562]
[1721773356496,0.00115694,65997.0,65996.0,0.78562]
[1721773358330,0.00115694,65997.0,65996.0,0.91147353]
[1721773364711,0.00115694,65997.0,65996.0,0.60842568]
[1721773365314,0.00115694,65997.0,65996.0,0.15385368]
[1721773365509,0.00115694,65997.0,65996.0,0.30537768]
[1721773365890,0.00115694,65997.0,65996.0,0.3788671]
[1721773366014,0.00115694,65997.0,65996.0,0.6819151]
[1721773366425,0.00115694,65997.0,65996.0,0.55606142]
[1721773366620,0.00115694,65997.0,65996.0,0.68192011]
[1721773367235,0.00115694,65997.0,65996.0,0.15385869]
[1721773367432,0.30023575,65997.0,65996.0,0.15385869]
[1721773367629,0.14871375,65997.0,65996.0,0.15385869]
[1721773367837,0.30023575,65997.0,65996.0,0.15385869]
[1721773368040,0.14871375,65997.0,65996.0,0.15385869]
[1721773368421,0.14871375,65997.0,65996.0,0.15386572]
[1721773371438,0.14871375,65997.0,65996.0,0.028]
[1721773371660,0.14871375,65997.0,65996.0,0.15386251]
[1721773372608,0.00731375,65997.0,65996.0,0.15386251]
[1721773378137,0.00731375,65997.0,65996.0,0.028]
[1721773378297,0.00731375,65997.0,65996.0,0.15386456]
[1721773378496,0.15883575,65997.0,65996.0,0.15386456]
[1721773380437,0.00731375,65997.0,65996.0,0.15386456]
[1721773380994,0.00115694,65997.0,65996.0,0.15386456]
[1721773381495,0.00115694,65997.0,65996.0,0.15665673]
[1721773381640,0.007304,65997.0,65996.0,0.30818073]
[1721773381821,0.00115694,65997.0,65996.0,0.15386273]
[1721773382025,0.007304,65997.0,65996.0,0.15386273]
[1721773384501,0.007304,65997.0,65996.0,0.30538673]
[1721773384891,0.007304,65997.0,65996.0,0.30538672]
[1721773386312,0.007304,65997.0,65996.0,0.30629972]
[1721773386897,0.00115694,65997.0,65996.0,0.30629972]
[1721773387738,0.00115694,65997.0,65996.0,0.15477572]
[1721773388145,0.00115694,65997.0,65996.0,0.028913]
[1721773388351,0.00115694,65997.0,65996.0,0.30629972]
[1721773389537,0.00115694,65997.0,65996.0,0.15477572]
[1721773390140,0.00115694,65997.0,65996.0,0.30629972]
[1721773390141,0.00871694,65997.0,65996.0,0.30629972]
[1721773391628,0.00871694,65997.0,65996.0,0.180437]
[1721773391828,0.00871694,65997.0,65996.0,0.30629972]
[1721773396104,0.00871694,65997.0,65996.0,0.15477572]
[1721773396314,0.01486728,65997.0,65996.0,0.15477572]
[1721773398336,1.06304685,65997.0,65996.0,0.15477572]
[1721773398527,1.80859776,65997.0,65996.0,0.028913]
[1721773398842,1.8147187,65997.0,65996.0,0.028913]
[1721773399424,1.8647187,65997.0,65996.0,0.028913]
[1721773399678,0.151574,65974.0,65970.0,0.44093655]
[1721773399842,0.151574,65974.0,65973.0,0.12683705]
[1721773400079,0.15763683,65974.0,65973.0,0.000924]
[1721773401464,0.00606283,65974.0,65973.0,0.000924]
[1721773401671,0.00606283,65974.0,65973.0,0.082924]
[1721773401872,0.44093655,65995.0,65973.0,0.082924]
[1721773401873,0.151547,65986.0,65982.0,0.151555]
[1721773402096,0.151547,65986.0,65973.0,0.64379791]
[1721773402097,0.00603003,65985.0,65984.0,0.303102]
[1721773402253,0.00603003,65985.0,65984.0,0.602753]
[1721773402453,0.383468,65992.0,65987.0,0.151544]
[1721773402454,0.151534,65992.0,65987.0,0.151544]
[1721773402772,0.00604899,65991.0,65990.0,0.07348942]
[1721773403181,0.151533,65992.0,65990.0,0.07348942]
[1721773403353,0.00604899,65991.0,65990.0,0.07348942]
[1721773404031,0.151531,65993.0,65990.0,0.07348942]
[1721773404238,0.00604899,65991.0,65990.0,0.07348942]
[1721773404409,0.151531,65993.0,65990.0,0.07348942]
[1721773404673,0.00604899,65991.0,65990.0,0.07348942]
[1721773404884,0.005,65992.0,65990.0,0.07348942]
[1721773405085,0.00604899,65991.0,65990.0,0.07348942]
[1721773405521,0.006,65993.0,65992.0,0.151533]
[1721773405738,0.00771694,65997.0,65992.0,0.303067]
[1721773405973,0.00771694,65997.0,65996.0,0.151524]
[1721773408132,0.02071694,65997.0,65996.0,0.151524]
[1721773408343,0.01071694,65997.0,65996.0,0.151524]
[1721773408723,0.02071694,65997.0,65996.0,0.152524]
[1721773409217,0.02071694,65997.0,65996.0,0.001]
[1721773409652,0.02684229,65997.0,65996.0,0.001]
[1721773409874,0.17836429,65997.0,65996.0,0.001]
[1721773410092,0.02684229,65997.0,65996.0,0.001]
[1721773410508,1.45515833,65997.0,65996.0,0.001]
[1721773410713,1.3767162,65997.0,65996.0,0.001]
[1721773417886,1.3767162,65997.0,65996.0,0.001913]
[1721773426132,1.4641162,65997.0,65996.0,0.001913]
[1721773431258,1.2345162,65997.0,65996.0,0.001913]
[1721773431465,1.45357782,65997.0,65996.0,0.001913]
[1721773431864,1.30655791,65997.0,65996.0,0.001913]
[1721773432122,0.48140829,65997.0,65996.0,0.062513]
[1721773438092,0.02684229,65997.0,65996.0,0.214037]
[1721773438371,0.02684229,65997.0,65996.0,0.594085]
[1721773438509,0.02684229,65997.0,65996.0,0.291037]
[1721773438919,0.02684229,65997.0,65996.0,0.41690457]
[1721773438920,0.02384229,65997.0,65996.0,0.41690457]
[1721773439182,0.01771694,65997.0,65996.0,0.41690457]
[1721773439403,0.01771694,65997.0,65996.0,0.291037]
[1721773439604,0.02380782,65997.0,65996.0,0.291037]
[1721773439761,0.01771694,65997.0,65996.0,0.291037]
[1721773440003,0.01771694,65997.0,65996.0,0.41690589]
[1721773440360,0.01871694,65997.0,65996.0,0.42590589]
[1721773440563,0.16023894,65997.0,65996.0,0.27338189]
[1721773440796,0.90879333,65997.0,65996.0,0.009913]
[1721773440992,0.91488858,65997.0,65996.0,0.011913]
[1721773441339,1.21793258,65997.0,65996.0,0.011913]
[1721773441774,0.91488858,65997.0,65996.0,0.011913]
[1721773442408,0.82748858,65997.0,65996.0,0.011913]
[1721773444065,0.77242219,65997.0,65996.0,0.011913]
[1721773444269,0.9194421,65997.0,65996.0,0.011913]
[1721773444830,1.2224861,65997.0,65996.0,0.011913]
[1721773445065,0.9194421,65997.0,65996.0,0.011913]
[1721773445269,1.2214861,65997.0,65996.0,0.002913]
[1721773445468,1.2214861,65997.0,65996.0,0.004913]
[1721773445469,1.44375771,65997.0,65996.0,0.004913]
[1721773445866,1.44375771,65997.0,65996.0,0.002913]
[1721773446701,1.44375771,65997.0,65996.0,0.000913]
[1721773447096,1.44975771,65997.0,65996.0,0.001913]
[1721773447303,1.45475771,65997.0,65996.0,0.001913]
[1721773447523,1.44375771,65997.0,65996.0,0.000913]
[1721773447878,1.46275771,65997.0,65996.0,0.002913]
[1721773448499,1.45675771,65997.0,65996.0,0.001913]
[1721773448708,1.44375771,65997.0,65996.0,0.000913]
[1721773449110,1.45675771,65997.0,65996.0,0.001913]
[1721773449874,1.46275771,65997.0,65996.0,0.002913]
[1721773451254,1.52675771,65997.0,65996.0,0.002913]
[1721773454835,2.2922578,65997.0,65996.0,0.002913]
[1721773455038,2.0892138,65997.0,65996.0,0.002913]
[1721773455150,2.1392138,65997.0,65996.0,0.002913]
[1721773456647,2.1202138,65997.0,65996.0,0.000913]
[1721773456927,2.1462138,65997.0,65996.0,0.001913]
[1721773457501,2.14621337,65997.0,65996.0,0.001913]
[1721773460888,2.13680171,65997.0,65996.0,0.001913]
[1721773461066,2.14621351,65997.0,65996.0,0.001913]
[1721773464282,2.23371364,65997.0,65996.0,0.001913]
[1721773464756,1.99154203,65997.0,65996.0,0.001913]
[1721773464959,1.94154203,65997.0,65996.0,0.001913]
[1721773465223,1.79744203,65997.0,65996.0,0.001913]
[1721773466182,1.84744203,65997.0,65996.0,0.001913]
[1721773466593,1.79744203,65997.0,65996.0,0.001913]
[1721773466794,1.94440468,65997.0,65996.0,0.001913]
[1721773467548,1.89440468,65997.0,65996.0,0.001913]
[1721773468526,1.74655016,65997.0,65996.0,0.001913]
[1721773470078,1.44350616,65997.0,65996.0,0.001913]
[1721773470850,1.42726916,65997.0,65996.0,0.001913]
[1721773471052,1.43668138,65997.0,65996.0,0.001913]
[1721773473021,1.34918138,65997.0,65996.0,0.001913]
[1721773473251,1.4671745,65997.0,65996.0,0.001913]
[1721773474221,1.45776228,65997.0,65996.0,0.001913]
[1721773474438,1.46717457,65997.0,65996.0,0.001913]
[1721773475092,1.47401457,65997.0,65996.0,0.001913]
[1721773477804,1.46460228,65997.0,65996.0,0.001913]
[1721773478072,1.4740146,65997.0,65996.0,0.001913]
[1721773480960,1.46460228,65997.0,65996.0,0.001913]
[1721773481222,1.4740105,65997.0,65996.0,0.001913]
[1721773481633,1.8770545,65997.0,65996.0,0.001913]
[1721773481857,2.1225545,65997.0,65996.0,0.001913]
[1721773482665,2.1233845,65997.0,65996.0,0.001913]
[1721773484220,2.11397628,65997.0,65996.0,0.001913]
[1721773484450,2.12338069,65997.0,65996.0,0.001913]
[1721773484917,2.00538757,65997.0,65996.0,0.001913]
[1721773485169,2.09288757,65997.0,65996.0,0.001913]
[1721773486966,2.09288552,65997.0,65996.0,0.001913]
[1721773487168,1.85988552,65997.0,65996.0,0.001913]
[1721773487351,1.94738552,65997.0,65996.0,0.001913]
[1721773487550,2.08494581,65997.0,65996.0,0.001913]
[1721773487753,2.09434792,65997.0,65996.0,0.001913]
[1721773490327,2.17484792,65997.0,65996.0,0.001913]
[1721773490521,0.05,65983.0,65978.0,0.0619]
[1721773490787,0.0621,65986.0,65973.0,0.000924]
[1721773490788,0.2375,65979.0,65973.0,0.000924]
[1721773490993,1.148521,65974.0,65973.0,0.000924]
[1721773491209,1.31092648,65974.0,65973.0,0.000924]
[1721773491402,1.91103813,65974.0,65973.0,0.000924]
[1721773491847,2.01103813,65974.0,65973.0,0.000924]
[1721773492051,2.03403813,65974.0,65973.0,0.000924]
[1721773492248,2.21533813,65974.0,65973.0,0.000924]
[1721773492471,2.21933813,65974.0,65973.0,0.000924]
[1721773492835,2.21533813,65974.0,65973.0,0.000924]
[1721773493188,2.53248713,65974.0,65973.0,0.001924]
[1721773493789,2.54648713,65974.0,65973.0,0.001924]
[1721773494212,2.67832462,65974.0,65973.0,0.001924]
[1721773494366,2.67832462,65974.0,65973.0,0.000924]
[1721773494575,2.69232462,65974.0,65973.0,0.000924]
[1721773495092,2.67832462,65974.0,65973.0,0.000924]
[1721773495431,2.69232462,65974.0,65973.0,0.000924]
[1721773495629,2.67832462,65974.0,65973.0,0.000924]
[1721773495832,2.67340587,65974.0,65973.0,0.000924]
[1721773496275,2.68740587,65974.0,65973.0,0.000924]
[1721773496908,2.70140587,65974.0,65973.0,0.000924]
[1721773497265,2.67477213,65974.0,65973.0,0.000924]
[1721773497466,2.68762325,65974.0,65973.0,0.000924]
[1721773497688,2.70162325,65974.0,65973.0,0.000924]
[1721773497908,2.68762325,65974.0,65973.0,0.000924]
[1721773498313,2.67362325,65974.0,65973.0,0.000924]
[1721773498494,2.68762325,65974.0,65973.0,0.000924]
[1721773498691,2.70162325,65974.0,65973.0,0.000924]
[1721773498894,2.68762325,65974.0,65973.0,0.000924]
[1721773499289,2.70162325,65974.0,65973.0,0.000924]
[1721773499920,2.68762325,65974.0,65973.0,0.000924]
[1721773500096,2.70162325,65974.0,65973.0,0.000924]
[1721773500644,2.70152265,65974.0,65973.0,0.000924]
[1721773503906,2.68877213,65974.0,65973.0,0.000924]
[1721773504099,2.70173504,65974.0,65973.0,0.000924]
[1721773505865,2.65173504,65974.0,65973.0,0.000924]
[1721773506086,2.70173504,65974.0,65973.0,0.000924]
[1721773507098,2.7016549,65974.0,65973.0,0.000924]
[1721773510169,2.5590549,65974.0,65973.0,0.000924]
[1721773510292,2.2559059,65974.0,65973.0,0.000924]
[1721773510495,1.98593259,65974.0,65973.0,0.000924]
[1721773510696,2.07306048,65974.0,65973.0,0.000924]
[1721773513422,2.08569926,65974.0,65973.0,0.000924]
[1721773513655,1.86689936,65974.0,65973.0,0.000924]
[1721773513869,2.08569936,65974.0,65973.0,0.000924]
[1721773514079,2.23266201,65974.0,65973.0,0.000924]
[1721773514284,2.10136201,65974.0,65973.0,0.000924]
[1721773516325,2.01386201,65974.0,65973.0,0.000924]
[1721773516529,2.10136201,65974.0,65973.0,0.000924]
[1721773516883,2.08872313,65974.0,65973.0,0.000924]
[1721773517083,1.41404617,65974.0,65973.0,0.000924]
[1721773517282,1.29203023,65974.0,65973.0,0.144024]
[1721773517511,1.24203023,65974.0,65973.0,0.144024]
[1721773518066,1.22803023,65974.0,65973.0,0.144024]
[1721773518271,1.37048799,65974.0,65973.0,0.144024]
[1721773518473,1.47048799,65974.0,65973.0,0.144024]
[1721773518886,1.48448799,65974.0,65973.0,0.144024]
[1721773519304,1.47048799,65974.0,65973.0,0.144024]
[1721773519710,1.45648799,65974.0,65973.0,0.144024]
[1721773520117,1.46848799,65974.0,65973.0,0.144024]
[1721773520706,1.48248799,65974.0,65973.0,0.144024]
[1721773522560,1.07933899,65974.0,65973.0,0.144024]
[1721773522760,0.63373223,65974.0,65973.0,0.144024]
[1721773523361,0.33058323,65974.0,65973.0,0.144024]
[1721773523755,0.18356332,65974.0,65973.0,0.144024]
[1721773523952,0.00598932,65974.0,65973.0,0.144024]
[1721773524152,0.00598932,65974.0,65973.0,0.295601]
[1721773524385,0.018,65974.0,65973.0,0.295601]
[1721773524587,0.02387253,65974.0,65973.0,0.295601]
[1721773524789,0.02387253,65974.0,65973.0,0.598755]
[1721773525139,0.005,65974.0,65973.0,0.598755]
[1721773525345,0.01087253,65974.0,65973.0,0.598755]
[1721773525538,0.005,65974.0,65973.0,0.598755]
[1721773525870,0.002,65974.0,65973.0,0.598755]
[1721773526361,0.002,65974.0,65973.0,0.599755]
[1721773526362,0.003,65974.0,65973.0,0.599755]
[1721773526999,0.002,65974.0,65973.0,0.598755]
[1721773527277,0.003,65974.0,65973.0,0.600755]
[1721773527518,0.001,65974.0,65973.0,0.600755]
[1721773527714,0.00687253,65974.0,65973.0,0.602755]
[1721773527868,0.001,65974.0,65973.0,0.602755]
[1721773528216,0.00687253,65974.0,65973.0,0.602755]
[1721773528392,0.001,65974.0,65973.0,0.602755]
[1721773528804,0.001,65974.0,65973.0,0.299601]
[1721773529005,0.00687253,65974.0,65973.0,0.299601]
[1721773529369,0.00687253,65974.0,65973.0,0.602755]
[1721773530000,0.00687253,65974.0,65973.0,0.299601]
[1721773532212,0.00687253,65974.0,65973.0,0.148024]
[1721773532213,0.46159553,65974.0,65973.0,0.148024]
[1721773533064,0.46059553,65974.0,65973.0,0.146024]
[1721773533271,0.46059553,65974.0,65973.0,0.147024]
[1721773533531,0.46059553,65974.0,65973.0,0.145024]
[1721773533663,0.54296898,65974.0,65973.0,0.145024]
[1721773533887,0.46659553,65974.0,65973.0,0.144024]
[1721773534127,0.46059553,65974.0,65973.0,0.144024]
[1721773534312,0.46259553,65974.0,65973.0,0.144024]
[1721773535710,0.46359553,65974.0,65973.0,0.145024]
[1721773541085,0.76674453,65974.0,65973.0,0.145024]
[1721773541512,0.46359553,65974.0,65973.0,0.145024]
[1721773543729,0.76674453,65974.0,65973.0,0.145024]
[1721773544107,0.46359553,65974.0,65973.0,0.145024]
[1721773547907,0.00887253,65974.0,65973.0,0.145024]
[1721773548945,0.16044653,65974.0,65973.0,0.145024]
[1721773549165,0.00887253,65974.0,65973.0,0.145024]
[1721773549578,0.16044653,65974.0,65973.0,0.145024]
[1721773550766,0.00887253,65974.0,65973.0,0.145024]
[1721773554050,0.00887253,65974.0,65973.0,0.296601]
[1721773554270,0.00887253,65974.0,65973.0,0.27094001]
[1721773554475,0.00887253,65974.0,65973.0,0.145024]
[1721773554676,0.003,65974.0,65973.0,0.145024]
[1721773554877,0.00894853,65974.0,65973.0,0.67324442]
[1721773555076,0.003,65974.0,65973.0,1.10231409]
[1721773556334,0.003,65974.0,65973.0,1.40546809]
[1721773556457,0.003,65974.0,65973.0,1.45546192]
[1721773557927,0.003,65974.0,65973.0,1.40546192]
[1721773558718,0.003,65974.0,65973.0,1.60248183]
[1721773559538,0.003,65974.0,65973.0,1.47657233]
[1721773559756,0.003,65974.0,65973.0,1.60247288]
[1721773559959,0.003,65974.0,65973.0,1.70247288]
[1721773560198,0.003,65974.0,65973.0,1.72747288]
[1721773560352,0.002,65974.0,65973.0,1.7945617]
[1721773560569,0.003,65974.0,65973.0,1.77587178]
[1721773560775,0.003,65974.0,65973.0,1.63047288]
[1721773560971,0.003,65974.0,65973.0,1.71797288]
[1721773561172,0.15154,65989.0,65975.0,0.05]
[1721773561380,0.15154,65989.0,65986.0,0.1417]
[1721773561573,0.0059515,65988.0,65987.0,0.002794]
[1721773562379,0.59413425,65988.0,65987.0,0.002794]
[1721773562584,0.151548,65986.0,65982.0,0.0643]
[1721773562785,0.151549,65985.0,65983.0,0.002794]
[1721773562942,0.151549,65985.0,65982.0,0.0643]
[1721773563147,0.0059515,65984.0,65983.0,0.002794]
[1721773563353,0.0059515,65984.0,65982.0,0.002794]
[1721773563556,0.151557,65982.0,65980.0,0.002794]
[1721773564183,0.0059515,65981.0,65979.0,0.0643]
[1721773564597,0.1575105,65981.0,65980.0,0.002794]
[1721773564808,0.1575105,65981.0,65980.0,0.009794]
[1721773565013,0.1575105,65981.0,65980.0,0.007]
[1721773565239,0.0059515,65981.0,65980.0,0.007]
[1721773565446,0.0059515,65981.0,65979.0,0.0643]
[1721773565646,0.0059515,65981.0,65980.0,0.002794]
[1721773565847,0.0069515,65981.0,65980.0,0.002794]
[1721773567236,0.0059515,65981.0,65980.0,0.002794]
[1721773567435,0.0069515,65981.0,65980.0,0.010794]
[1721773567635,0.0069515,65981.0,65980.0,0.008]
[1721773568359,0.0069515,65981.0,65980.0,0.159561]
[1721773568569,0.0069515,65981.0,65980.0,0.912705]
[1721773568777,0.001,65981.0,65980.0,0.912705]
[1721773568951,0.001,65981.0,65980.0,1.03860125]
[1721773569573,0.001,65981.0,65980.0,1.03859713]
[1721773572756,0.001,65981.0,65980.0,1.03859704]
[1721773572974,0.00784,65981.0,65980.0,1.03859704]
[1721773574874,0.00784,65981.0,65980.0,1.03359704]
[1721773575517,0.00784,65981.0,65980.0,1.08359704]
[1721773575735,0.00784,65981.0,65980.0,1.03359704]
[1721773576110,0.00784,65981.0,65980.0,1.03359674]
[1721773576488,0.00784,65981.0,65980.0,0.907705]
[1721773576693,0.00784,65981.0,65980.0,1.03450861]
[1721773578049,0.00784,65981.0,65980.0,1.33763061]
[1721773579582,0.00784,65981.0,65980.0,1.33763009]
[1721773582978,0.00784,65981.0,65980.0,1.33762994]
[1721773586134,0.00784,65981.0,65980.0,1.03450794]
[1721773586340,0.00784,65981.0,65980.0,1.03450806]
[1721773588311,0.00784,65981.0,65980.0,0.58448606]
[1721773588502,0.00784,65981.0,65980.0,0.28136406]
[1721773588655,0.00784,65981.0,65980.0,0.58448606]
[1721773588848,0.01388412,65981.0,65980.0,0.58448606]
[1721773589672,0.01388412,65981.0,65980.0,0.28136567]
[1721773590964,0.01388412,65981.0,65980.0,0.58448767]
[1721773591165,0.01388412,65981.0,65980.0,0.28136567]
[1721773591369,0.01388412,65981.0,65980.0,0.58448767]
[1721773591989,0.01388412,65981.0,65980.0,0.28136567]
[1721773592401,0.00784,65981.0,65980.0,0.28136567]
[1721773592707,0.01387961,65981.0,65980.0,0.28136567]
[1721773592882,0.01387961,65981.0,65980.0,0.155474]